Cogmind - Beta 9.3 @@@ ROGUE MODE // 2020.01.04 @ 17:05:18 Player: Cipherpunk Result: Destroyed by G-67 Veteran with Plasma Rifle Performance ------------- Evolutions (5) 2500 Regions Visited (16) 3200 Robots Destroyed (91) 455 Value Destroyed (3215) 3215 Prototype IDs (48) 960 Alien Tech Used (2) 400 Bonus (1190) 1190 TOTAL SCORE: 11920 Bonus ------- High Alert Combat Kills 111 Follower Combat Kills 179 Aligned with FarCom 300 Met Data Miner 300 Met Zhirov 300 Cogmind --------- Core Integrity 0/1000 Matter 142/300 Energy 98/100 System Corruption 19% Temperature Cool (21) Movement Core (50) Location -4/Proximity Caves Parts ------- > --- POWER (2) -------- (None) > --- PROPULSION (4) --- (None) > --- UTILITY (7) ------ (None) > --- WEAPON (4) ------- (None) > --- INVENTORY (4) ---- Neutrino Core Advanced Heat Sink Improved Kinecellerator Force Field Peak State ------------ > --- POWER ------------ Micro Fission Core Antimatter Reactor > --- PROPULSION ------- Armored Huge Wheel Armored Huge Wheel > --- UTILITY ---------- Medium Storage Unit High-capacity Storage Unit High-capacity Storage Unit Targeting Computer Force Field Advanced Drone Bay > --- WEAPON ----------- XL Autogun Array > --- INVENTORY -------- Light Nuclear Core Armored Huge Wheel Armored Huge Wheel Advanced Cryofiber Web Advanced Heat Sink Advanced Heat Sink Energy Well Improved Target Analyzer Improved Kinecellerator Improved ECM Suite Experimental Power Shielding Improved Medium Armor Plating Layered Medium Armor Plating Improved Focal Shield High-powered Shock Rifle Plasma Rifle Heavy Phase Cannon Heavy Flak Cannon Enhanced Gauss Cannon Rocket Launcher Great Axe Great Axe [Rating: 97] Favorites ----------- Power Neutrino Core Engine Light Ion Engine Power Core Neutrino Core Reactor Antimatter Reactor Propulsion Armored Huge Wheel Leg Carbon-fiber Leg Wheel Armored Huge Wheel Utility High-capacity Storage Unit Device Force Field Storage High-capacity Storage Unit Processor Targeting Computer Protection Improved Medium Armor Plating Weapon XL Autogun Array Energy Gun Beamcaster Energy Cannon Heavy Phase Cannon Ballistic Gun XL Autogun Array Ballistic Cannon Enhanced Gauss Cannon Launcher Rocket Launcher Piercing Weapon Makeshift Spear Build | -11 -10 -10 -10 -9 -8 -7 -7 -7 -7 -6 -6 -5 -5 -5 -5 -4 ------- Run | Scr Mat Min Exi Min Mat Fac Low Low Dat Pro Fac Fac Upp Upp Zhi Pro Slots Evolved 10 | . . . . . 4 2 . . . . 2 2 . . . . Power 1 | . . . . . . . . . . . . 1 . . . . Propulsion 2 | . . . . . 1 . . . . . 1 . . . . . Utility 5 | . . . . . 1 2 . . . . 1 1 . . . . Weapon 2 | . . . . . 2 . . . . . . . . . . . Parts Attached 104 | . 2 5 5 . 23 4 2 3 . 4 6 22 9 6 4 9 Power 15 | . . 1 . . 4 . 2 . . . . 6 . 1 1 . Engine 3 | . . 1 . . 2 . . . . . . . . . . . Core 10 | . . . . . 2 . 2 . . . . 5 . 1 . . Reactor 2 | . . . . . . . . . . . . 1 . . 1 . Propulsion 20 | . . . 1 . 12 . . 2 . . 2 . . 2 . 1 Treads . | . . . . . . . . . . . . . . . . . Leg 15 | . . . 1 . 12 . . 2 . . . . . . . . Wheel 5 | . . . . . . . . . . . 2 . . 2 . 1 Hover . | . . . . . . . . . . . . . . . . . Flight . | . . . . . . . . . . . . . . . . . Utility 47 | . 1 1 1 . 6 4 . 1 . 4 4 12 6 1 3 3 Device 25 | . . 1 . . 3 2 . 1 . 1 1 8 5 . 1 2 Storage 10 | . . . 1 . 2 1 . . . . . 4 . 1 1 . Processor 2 | . . . . . . . . . . . 1 . 1 . . . Hackware . | . . . . . . . . . . . . . . . . . Protection 10 | . 1 . . . 1 1 . . . 3 2 . . . 1 1 Artifact . | . . . . . . . . . . . . . . . . . Weapon 22 | . 1 3 3 . 1 . . . . . . 4 3 2 . 5 Energy Gun 6 | . . . . . . . . . . . . 2 . 1 . 3 Energy Cannon 4 | . 1 . 2 . . . . . . . . 1 . . . . Ballistic Gun 4 | . . 1 . . 1 . . . . . . 1 . . . 1 Ballistic Cannon 2 | . . . . . . . . . . . . . 2 . . . Launcher 5 | . . 2 1 . . . . . . . . . 1 . . 1 Special Weapon . | . . . . . . . . . . . . . . . . . Impact Weapon . | . . . . . . . . . . . . . . . . . Slashing Weapon . | . . . . . . . . . . . . . . . . . Piercing Weapon 1 | . . . . . . . . . . . . . . 1 . . Special Melee Weapon . | . . . . . . . . . . . . . . . . . Unidentified Prototypes 6 | . . . . . . . . . . . 1 . 1 . 3 1 Parts Lost 29 | . . . . . . . . . . 3 . 2 4 3 . 17 Power 4 | . . . . . . . . . . . . 1 1 . . 2 Propulsion 6 | . . . . . . . . . . 1 . . . 2 . 3 Utility 9 | . . . . . . . . . . 2 . . 1 1 . 5 Weapon 10 | . . . . . . . . . . . . 1 2 . . 7 Highest Loss Streak 8 | . . . . . . . . . . 3 . 1 3 3 . 8 Average Slot Usage (%) 76 | . 91 100 100 100 67 76 76 76 76 75 65 70 77 85 87 69 Engine 2 | . 14 14 14 14 7 . . . . . . . . . . . Core 5 | . . . . . 1 7 7 7 7 7 6 7 5 8 9 4 Reactor 1 | . . . . . . . . . . . . 3 2 . 1 4 Leg 11 | . 28 28 28 28 25 23 23 23 23 22 3 . . . . . Wheel 5 | . . . . . . . . . . . 9 11 11 11 11 10 Device 10 | . . 13 14 14 4 16 7 7 7 7 9 11 11 17 14 8 Storage 20 | . 14 14 14 14 18 18 23 23 23 23 20 22 17 19 23 20 Processor 2 | . . . . . . . . . . . 2 5 10 3 . . Protection 2 | . 5 . . . 1 2 7 7 7 6 6 . . . 1 4 Energy Cannon 2 | . 5 14 14 14 . . . . . . . . 5 5 5 . Ballistic Gun 4 | . 14 12 . . 9 7 7 7 7 7 6 4 . . . 2 Ballistic Cannon 2 | . . . . . . . . . . . . . 9 11 11 2 Naked Turns 23 | . . . . . . . . . . . . . . . . 23 Heaviest Build 137 | 12 15 16 43 43 85 100 109 112 112 112 111 133 137 135 135 111 Greatest Support 56 | 20 20 20 20 20 45 45 45 50 50 50 56 56 56 56 56 56 Greatest Overweight (x) 4 | . . . 2 2 2 2 2 2 2 3 3 2 2 4 2 3 Average Overweight (x) 1 | . . . . 2 1 1 2 2 2 2 1 1 2 2 2 . Largest Inventory Capacity 24 | . 6 6 12 12 20 24 24 24 24 24 24 24 24 24 24 24 Average Capacity 21 | . 6 6 6 12 14 21 24 24 24 24 24 24 24 24 24 23 Most Carried 24 | . 6 6 8 8 20 22 24 24 24 24 24 24 24 24 24 24 Average Carried 20 | . 5 5 6 8 11 20 23 23 24 23 22 23 21 21 20 21 Final Capacity 24 | 6 6 6 12 12 20 24 24 24 24 24 24 24 24 24 24 4 Final Carried 24 | 6 5 6 8 8 20 22 24 24 24 24 24 23 24 18 23 4 Class Distribution -------------------- 33% | Hauler-Skirmisher 17% | Hauler-Gunner 10% | Hauler-Tank 10% | Mutant 8% | Scavenger-Tank 8% | Scavenger-Skirmisher 7% | Hauler-Mutant 3% | Skirmisher Dominant Class ---------------- Mutant | -10/Materials Mutant | -10/Mines Mutant | -10/Exiles Skirmisher | -9/Mines Scavenger-Skirmisher | -8/Materials Scavenger-Skirmisher | -7/Factory Scavenger-Tank | -7/Lower Caves Hauler-Gunner | -7/Lower Caves Hauler-Gunner | -7/Data Miner Hauler-Gunner | -6/Proximity Caves Hauler-Skirmisher | -6/Factory Hauler-Skirmisher | -5/Factory Hauler-Skirmisher | -5/Upper Caves Hauler-Tank | -5/Upper Caves Hauler-Tank | -5/Zhirov Hauler-Mutant | -4/Proximity Caves Resources | -11 -10 -10 -10 -9 -8 -7 -7 -7 -7 -6 -6 -5 -5 -5 -5 -4 ----------- Run | Scr Mat Min Exi Min Mat Fac Low Low Dat Pro Fac Fac Upp Upp Zhi Pro Matter Collected 4249 | 200 53 90 . 41 1273 22 373 120 . 310 139 846 382 244 . 156 Remotely . | . . . . . . . . . . . . . . . . . Salvage Created 3523 | . 107 43 . . 1388 22 200 113 . 315 139 998 77 60 . 61 Parts 210 | . 6 7 . . 68 5 15 8 . 8 9 73 5 1 . 5 Haulers Intercepted 3 | . . . . . 2 . . . . . . 1 . . . . Recyclers Shooed . | . . . . . . . . . . . . . . . . . Parts Field Recycled . | . . . . . . . . . . . . . . . . . Retrieved Matter . | . . . . . . . . . . . . . . . . . Parts Self-Destructed 59 | . . . . . . . 14 8 . 14 . . 8 3 . 12 Prevented 6 | . . . . . . . . . . . . . . . . 6 Kills | -11 -10 -10 -10 -9 -8 -7 -7 -7 -7 -6 -6 -5 -5 -5 -5 -4 ------- Run | Scr Mat Min Exi Min Mat Fac Low Low Dat Pro Fac Fac Upp Upp Zhi Pro Combat Hostiles Destroyed 70 | . 4 4 . . 23 . 8 2 . 5 2 12 3 3 . 4 Melee 1 | . . . . . . . . . . . . . . . . 1 Guns 56 | . 3 . . . 23 . 8 2 . 5 2 11 2 . . . Cannons 10 | . 1 1 . . . . . . . . . 1 1 3 . 3 AOE 3 | . . 3 . . . . . . . . . . . . . . Classes Destroyed 13 | . 2 1 . . 8 . . . . 1 . 1 . . . . Worker 4 | . . . . . 1 . . . . . . 3 . . . . Builder 5 | . . . . . 3 1 . . . . . 1 . . . . Hauler 3 | . . . . . 2 . . . . . . 1 . . . . Recycler 2 | . . . . . 2 . . . . . . . . . . . Operator 5 | . . . . . 2 . . . . . . 3 . . . . Watcher 2 | . . . . . 1 . . . . . . 1 . . . . Swarmer 26 | . 2 3 . . 4 . 8 . . . . . 3 2 . 4 Grunt 21 | . 2 . . . 14 . . . . 3 . 2 . . . . Duelist 2 | . . . . . . . . . . 2 . . . . . . Sentry 6 | . . . . . 1 . . 1 . . 2 2 . . . . Hunter 8 | . . . . . 4 . . 1 . . . 2 . 1 . . Programmer 6 | . . . . . . . . . . . . 6 . . . . Assembled 1 | . . 1 . . . . . . . . . . . . . . Best Kill Streak 9 | . 1 3 . . 9 1 4 1 . 5 1 3 2 3 . 4 Combat Bots Only 6 | . 1 3 . . 6 . 4 1 . 5 1 3 2 3 . 4 Max Kills in Single Turn 2 | . 1 2 . . 2 1 2 1 . 1 1 1 1 1 . 1 Gunslinging . | . . . . . . . . . . . . . . . . . Exploded 2 | . . 2 . . . . . . . . . . . . . . Melee 1 | . . . . . . . . . . . . . . . . 1 Uniques/NPCs Destroyed . | . . . . . . . . . . . . . . . . . Combat | -11 -10 -10 -10 -9 -8 -7 -7 -7 -7 -6 -6 -5 -5 -5 -5 -4 -------- Run | Scr Mat Min Exi Min Mat Fac Low Low Dat Pro Fac Fac Upp Upp Zhi Pro Damage Taken 7197 | . 82 207 . . 693 . 200 160 . 650 73 648 535 682 . 3267 Core 1094 | . . 15 . . 55 . 16 14 . 36 10 55 49 89 . 755 Absorbed by Shields 1097 | . . . . . . . . . . . . 581 184 332 . . Core Remaining (%) 94 | 100 . . . 94 90 . . . . 90 98 . . . . . Volleys Fired 242 | . 11 11 . . 73 4 14 6 . 19 9 55 10 19 . 11 Largest 3 | . 2 2 . . 1 1 1 1 . 1 1 3 3 3 . 3 Hottest 242 | . 80 90 . . 60 60 60 60 . 60 60 242 242 208 . 231 Shots Fired 314 | . 22 21 . . 73 4 14 6 . 19 9 59 20 45 . 22 Gun 227 | . 21 8 . . 73 4 14 6 . 19 9 56 8 . . 9 Cannon 83 | . 1 11 . . . . . . . . . 3 12 45 . 11 Launcher 4 | . . 2 . . . . . . . . . . . . . 2 Special . | . . . . . . . . . . . . . . . . . Kinetic 246 | . 11 8 . . 73 4 14 6 . 19 9 51 2 38 . 11 Thermal 64 | . 11 11 . . . . . . . . . 8 18 7 . 9 Explosive 2 | . . 2 . . . . . . . . . . . . . . Electromagnetic 2 | . . . . . . . . . . . . . . . . 2 Robot Hit Streak 14 | . 6 2 . . 14 5 5 11 . 5 4 8 5 4 . 3 Robot Miss Streak 24 | . 3 5 . . 6 6 5 2 . 5 2 4 5 24 . 5 Penetration Max 1 | . . . . . . . . . . . . . 1 . . . Secondary Targets . | . . . . . . . . . . . . . . . . . Shots Hit Robots 233 | . 12 8 . . 71 3 12 6 . 19 9 46 11 23 . 13 Core Hits 157 | . 6 5 . . 53 1 8 4 . 11 5 42 5 11 . 6 Critical Hits 2 | . . . . . . . . . . . . . . 2 . . Critical Kills . | . . . . . . . . . . . . . . . . . Critical Parts Destroyed 2 | . . . . . . . . . . . . . . 2 . . Melee Attacks 27 | . . . . . . . . . . . . . . 23 . 4 Impact . | . . . . . . . . . . . . . . . . . Slashing . | . . . . . . . . . . . . . . . . . Piercing 27 | . . . . . . . . . . . . . . 23 . 4 Sneak Attacks . | . . . . . . . . . . . . . . . . . Combat Hostiles . | . . . . . . . . . . . . . . . . . Follow-up Attacks . | . . . . . . . . . . . . . . . . . Damage Inflicted 10353 | . 147 202 . . 3658 43 381 402 . 1063 608 2809 212 361 . 467 Guns 8879 | . 130 14 . . 3658 43 381 402 . 1063 608 2429 60 . . 91 Cannons 949 | . 17 69 . . . . . . . . . 105 152 334 . 272 Explosions 262 | . . 119 . . . . . . . . . 68 . . . 75 Melee 56 | . . . . . . . . . . . . . . 27 . 29 Ramming 207 | . . . . . . . . . . . . 207 . . . . Kinetic 9246 | . 65 14 . . 3658 43 381 402 . 1063 608 2389 83 334 . 206 Thermal 644 | . 82 69 . . . . . . . . . 207 129 . . 157 Explosive 119 | . . 119 . . . . . . . . . . . . . . Electromagnetic 81 | . . . . . . . . . . . . 6 . . . 75 Impact . | . . . . . . . . . . . . . . . . . Slashing . | . . . . . . . . . . . . . . . . . Piercing 56 | . . . . . . . . . . . . . . 27 . 29 Highest Corruption 19 | . . . . . . . . . . . . 11 11 19 19 19 Average Corruption 11 | . . . . . . . . . . . . 5 11 13 19 19 Corruption Purged . | . . . . . . . . . . . . . . . . . Effects 206 | . . . . . . . . . . . . 48 43 53 12 50 Message Errors 41 | . . . . . . . . . . . . 14 8 9 3 7 Matter Fused 33 | . . . . . . . . . . . . 11 11 7 1 3 Heat Flow Errors 16 | . . . . . . . . . . . . 4 4 2 . 6 Energy Discharges 19 | . . . . . . . . . . . . 9 2 3 . 5 Data Loss (minor) 20 | . . . . . . . . . . . . 5 4 4 2 5 Data Loss (major) 3 | . . . . . . . . . . . . 1 1 . 1 . Misfires 4 | . . . . . . . . . . . . 1 . 2 . 1 Alerts 2 | . . . . . . . . . . . . . 1 . . 1 Misdirections 43 | . . . . . . . . . . . . . 9 16 5 13 Targeting Errors 20 | . . . . . . . . . . . . 2 3 9 . 6 Weapon Failures 5 | . . . . . . . . . . . . 1 . 1 . 3 Overload Shots . | . . . . . . . . . . . . . . . . . Overflow Damage 10 | . . . . . . . . . . . . 8 . . . 2 Projectiles . | . . . . . . . . . . . . . . . . . Explosions 10 | . . . . . . . . . . . . 8 . . . 2 Melee . | . . . . . . . . . . . . . . . . . Knockbacks 10 | . . . . . . . . . . . . 1 . 8 . 1 Impact 1 | . . . . . . . . . . . . 1 . . . . Kinetic 9 | . . . . . . . . . . . . . . 8 . 1 Secondary . | . . . . . . . . . . . . . . . . . Self-Inflicted Damage 152 | . . . . . . . . . . . . 143 . . . 9 Shots 4 | . . . . . . . . . . . . 3 . . . 1 Rammed 9 | . . . . . . . . . . . . 9 . . . . Targets Rammed 9 | . . . . . . . . . . . . 9 . . . . Kicked . | . . . . . . . . . . . . . . . . . Crushed . | . . . . . . . . . . . . . . . . . Highest Temperature 536 | . 27 126 . . 427 48 128 132 . 383 102 381 536 405 . 388 Average Temperature 139 | . 17 50 . . 136 23 58 54 . 227 46 113 212 168 . 201 Received Heat Transfer 1167 | . 45 . . . 288 . . 30 . 177 6 58 41 . . 522 Effects 13 | . . . . . 2 . . . . 2 . 1 4 3 . 1 Shutdowns 5 | . . . . . 1 . . . . 1 . . 2 1 . . Energy Bleed 1 | . . . . . . . . . . . . 1 . . . . Interference 5 | . . . . . 1 . . . . . . . 2 2 . . Damage (minor) 2 | . . . . . . . . . . 1 . . . . . 1 Siege Activations . | . . . . . . . . . . . . . . . . . Robots Corrupted . | . . . . . . . . . . . . . . . . . Combat Hostiles . | . . . . . . . . . . . . . . . . . Parts Fried . | . . . . . . . . . . . . . . . . . Impact Corruptions . | . . . . . . . . . . . . . . . . . Robots Melted . | . . . . . . . . . . . . . . . . . Combat Hostiles . | . . . . . . . . . . . . . . . . . Parts Melted 1 | . . . . . . . . . . . . . 1 . . . Heat Transferred 1016 | . 187 148 . . . . . . . . . 248 198 . . 235 Parts Sabotaged . | . . . . . . . . . . . . . . . . . Parts Stolen . | . . . . . . . . . . . . . . . . . Parts Stripped . | . . . . . . . . . . . . . . . . . Power Chain Reactions 1 | . . . . . . . . . . . . 1 . . . . Missiles Intercepted . | . . . . . . . . . . . . . . . . . Alert | -11 -10 -10 -10 -9 -8 -7 -7 -7 -7 -6 -6 -5 -5 -5 -5 -4 ------- Run | Scr Mat Min Exi Min Mat Fac Low Low Dat Pro Fac Fac Upp Upp Zhi Pro Peak Influence 714 | . 130 120 . . 714 334 . . . . 90 230 . . . . Average Influence 148 | . 78 96 . . 363 325 . . . . 59 106 . . . . Maximum Alert Level 3 | . . . . . 3 1 . . . . . 1 . . . . Low Security (%) 79 | . 100 100 . 100 35 . . . . . 100 93 . . . . Level 1 14 | . . . . . 27 100 . . . . . 6 . . . . Level 2 4 | . . . . . 28 . . . . . . . . . . . Level 3 1 | . . . . . 8 . . . . . . . . . . . Level 4 . | . . . . . . . . . . . . . . . . . Level 5 . | . . . . . . . . . . . . . . . . . High Security . | . . . . . . . . . . . . . . . . . Max Security . | . . . . . . . . . . . . . . . . . Squads Dispatched 20 | . 1 . . . 7 . . . . . 1 11 . . . . Investigation 2 | . . . . . . . . . . . . 2 . . . . Extermination 4 | . . . . . . . . . . . 1 3 . . . . Reinforcement 8 | . 1 . . . 4 . . . . . . 3 . . . . Assault . | . . . . . . . . . . . . . . . . . Garrison 6 | . . . . . 3 . . . . . . 3 . . . . Intercept . | . . . . . . . . . . . . . . . . . Construction Impeded 2 | . . . . . 1 . . . . . . 1 . . . . Haulers Reinforced . | . . . . . . . . . . . . . . . . . Stealth | -11 -10 -10 -10 -9 -8 -7 -7 -7 -7 -6 -6 -5 -5 -5 -5 -4 --------- Run | Scr Mat Min Exi Min Mat Fac Low Low Dat Pro Fac Fac Upp Upp Zhi Pro Distress Signals 8 | . 2 . . . 5 . . . . . . 1 . . . . Communications Jammed . | . . . . . . . . . . . . . . . . . Distress Signals . | . . . . . . . . . . . . . . . . . Times Spotted 159 | . 9 4 . . 39 1 8 3 . 8 2 22 10 20 . 33 Peak Tracking Total 8 | . 4 3 . . 8 1 4 1 . 6 1 3 4 6 . 7 Tactical Retreats 19 | . 2 . . . 1 . . . . 1 . . 2 8 . 5 Traps | -11 -10 -10 -10 -9 -8 -7 -7 -7 -7 -6 -6 -5 -5 -5 -5 -4 ------- Run | Scr Mat Min Exi Min Mat Fac Low Low Dat Pro Fac Fac Upp Upp Zhi Pro Traps Triggered 6 | . . . . . 1 . . . . . 1 4 . . . . Indirectly . | . . . . . . . . . . . . . . . . . Trap Hack Attempts . | . . . . . . . . . . . . . . . . . Triggered . | . . . . . . . . . . . . . . . . . Disarmed . | . . . . . . . . . . . . . . . . . Reprogrammed . | . . . . . . . . . . . . . . . . . Reused . | . . . . . . . . . . . . . . . . . Traps Extracted . | . . . . . . . . . . . . . . . . . Installed . | . . . . . . . . . . . . . . . . . Triggered 4 | . . . . . . . 2 . . . . 1 . . . 1 Machines | -11 -10 -10 -10 -9 -8 -7 -7 -7 -7 -6 -6 -5 -5 -5 -5 -4 ---------- Run | Scr Mat Min Exi Min Mat Fac Low Low Dat Pro Fac Fac Upp Upp Zhi Pro Machines Disabled 14 | . . . . . 7 . . . . . . 7 . . . . Max in Single Turn 3 | . . . . . 1 . . . . . . 3 . . . . Machines Sabotaged . | . . . . . . . . . . . . . . . . . Garrisons Compromised . | . . . . . . . . . . . . . . . . . Overloaded Fab Kills . | . . . . . . . . . . . . . . . . . Fab Network Shutdowns . | . . . . . . . . . . . . . . . . . Hacking | -11 -10 -10 -10 -9 -8 -7 -7 -7 -7 -6 -6 -5 -5 -5 -5 -4 --------- Run | Scr Mat Min Exi Min Mat Fac Low Low Dat Pro Fac Fac Upp Upp Zhi Pro Machines Accessed 27 | . 2 . 1 . 1 2 . 1 4 . 1 8 1 . 6 . Terminals 12 | . 2 . . . 1 1 . . . . 1 7 . . . . Fabricators 1 | . . . . . . 1 . . . . . . . . . . Repair Stations . | . . . . . . . . . . . . . . . . . Recycling Units 1 | . . . . . . . . . . . . 1 . . . . Scanalyzers . | . . . . . . . . . . . . . . . . . Garrison Access . | . . . . . . . . . . . . . . . . . Total Hacks 71 | . 4 . 1 . 1 2 . 1 28 . 2 12 1 . 19 . Successful 57 | . 2 . 1 . 1 1 . 1 28 . 1 2 1 . 19 . Failed 14 | . 2 . . . . 1 . . . . 1 10 . . . . Catastrophic 9 | . 2 . . . . 1 . . . . . 6 . . . . Database Lockouts . | . . . . . . . . . . . . . . . . . Manual 16 | . 3 . 1 . . . . . . . 2 10 . . . . Terminals 19 | . 4 . . . 1 1 . . . . 2 11 . . . . Fabricators 1 | . . . . . . 1 . . . . . . . . . . Repair Stations . | . . . . . . . . . . . . . . . . . Recycling Units 1 | . . . . . . . . . . . . 1 . . . . Scanalyzers . | . . . . . . . . . . . . . . . . . Garrison Access . | . . . . . . . . . . . . . . . . . Terminal Hacks 55 | . 2 . 1 . 1 . . 1 28 . 1 1 1 . 19 . Record 18 | . . . . . . . . . 11 . . . . . 7 . Part Schematic 10 | . . . . . . . . . 6 . . . . . 4 . Robot Schematic 8 | . . . . . . . . . 8 . . . . . . . Robot Analysis 4 | . . . . . . . . . . . . . . . 4 . Prototype ID Bank 7 | . . . . . . . . . 3 . . . . . 4 . Open Door 2 | . . . . . . . . 1 . . . . 1 . . . Branch Access Points 2 | . . . . . . . . . . . 1 1 . . . . Locate Traps 2 | . 1 . . . 1 . . . . . . . . . . . Recall Reinforcements 1 | . 1 . . . . . . . . . . . . . . . EX-Prototype ID Bank 1 | . . . 1 . . . . . . . . . . . . . Fabricator Hacks 1 | . . . . . . 1 . . . . . . . . . . Network Status 1 | . . . . . . 1 . . . . . . . . . . Repair Station Hacks . | . . . . . . . . . . . . . . . . . Recycling Unit Hacks 1 | . . . . . . . . . . . . 1 . . . . Retrieve Components 1 | . . . . . . . . . . . . 1 . . . . Scanalyzer . | . . . . . . . . . . . . . . . . . Garrison Access Hacks . | . . . . . . . . . . . . . . . . . Unauthorized Hacks . | . . . . . . . . . . . . . . . . . Terminals . | . . . . . . . . . . . . . . . . . Fabricators . | . . . . . . . . . . . . . . . . . Repair Stations . | . . . . . . . . . . . . . . . . . Recycling Units . | . . . . . . . . . . . . . . . . . Scanalyzers . | . . . . . . . . . . . . . . . . . Garrison Access . | . . . . . . . . . . . . . . . . . Data Cores Recovered 3 | . . . . . . . . . . . . 3 . . . . Used 2 | . . . . . . . . . . . . 2 . . . . Hacking Detections 13 | . 2 . . . 1 1 . . . . 1 8 . . . . Full Trace Events 1 | . . . . . . . . . . . . 1 . . . . Feedback Events . | . . . . . . . . . . . . . . . . . Feedback Blocked . | . . . . . . . . . . . . . . . . . Robot Schematics Acquired 8 | . . . . . . . . . 8 . . . . . . . Robots Built . | . . . . . . . . . . . . . . . . . Matter . | . . . . . . . . . . . . . . . . . Time . | . . . . . . . . . . . . . . . . . Total Robot Build Rating . | . . . . . . . . . . . . . . . . . Part Schematics Acquired 10 | . . . . . . . . . 6 . . . . . 4 . Parts Built . | . . . . . . . . . . . . . . . . . Matter . | . . . . . . . . . . . . . . . . . Time . | . . . . . . . . . . . . . . . . . Total Part Build Rating . | . . . . . . . . . . . . . . . . . Parts Repaired . | . . . . . . . . . . . . . . . . . Time . | . . . . . . . . . . . . . . . . . Parts Recycled . | . . . . . . . . . . . . . . . . . Recycled Matter . | . . . . . . . . . . . . . . . . . Retrieved Matter . | . . . . . . . . . . . . . . . . . Retrieved Components 8 | . . . . . . . . . . . . 8 . . . . Parts Scanalyzed . | . . . . . . . . . . . . . . . . . Part Schematics Acquired . | . . . . . . . . . . . . . . . . . Parts Damaged . | . . . . . . . . . . . . . . . . . Bothacking | -11 -10 -10 -10 -9 -8 -7 -7 -7 -7 -6 -6 -5 -5 -5 -5 -4 ------------ Run | Scr Mat Min Exi Min Mat Fac Low Low Dat Pro Fac Fac Upp Upp Zhi Pro Used RIF Installer . | . . . . . . . . . . . . . . . . . Robots Hacked . | . . . . . . . . . . . . . . . . . Non-combat . | . . . . . . . . . . . . . . . . . Combat . | . . . . . . . . . . . . . . . . . Robot Hacks Applied . | . . . . . . . . . . . . . . . . . Relay Couplers Released . | . . . . . . . . . . . . . . . . . Robots Rewired . | . . . . . . . . . . . . . . . . . Allies Hacked . | . . . . . . . . . . . . . . . . . Hacks Repelled . | . . . . . . . . . . . . . . . . . Allies | -11 -10 -10 -10 -9 -8 -7 -7 -7 -7 -6 -6 -5 -5 -5 -5 -4 -------- Run | Scr Mat Min Exi Min Mat Fac Low Low Dat Pro Fac Fac Upp Upp Zhi Pro Total Allies 4 | . . . . . . . . 3 . 1 . . . . . . Largest Group 3 | . . . . . . . . 3 . 1 . . . . . . Highest-Rated Group 94 | . . . . . . . . 93 . 94 . . . . . . Highest-Rated Ally 94 | . . . . . . . . 31 . 94 . . . . . . Total Orders 1 | . . . . . . . . . . . . 1 . . . . EXPLORE 1 | . . . . . . . . . . . . 1 . . . . Ally Attacks 28 | . . . . . . . . 14 . 14 . . . . . . Total Damage 711 | . . . . . . . . 204 . 507 . . . . . . Kills 4 | . . . . . . . . 1 . 3 . . . . . . Allies Corrupted . | . . . . . . . . . . . . . . . . . Allies Melted . | . . . . . . . . . . . . . . . . . Intel | -11 -10 -10 -10 -9 -8 -7 -7 -7 -7 -6 -6 -5 -5 -5 -5 -4 ------- Run | Scr Mat Min Exi Min Mat Fac Low Low Dat Pro Fac Fac Upp Upp Zhi Pro Robot Analysis Total 4 | . . . . . . . . . . . . . . . 4 . Derelict Logs Recovered 10 | . . 1 . . . . 1 1 . 1 . . 2 1 . 3 Drone Launches 2 | . . . . . . . . . . . . 2 . . . . Drone Recoveries . | . . . . . . . . . . . . . . . . . Exploration | -11 -10 -10 -10 -9 -8 -7 -7 -7 -7 -6 -6 -5 -5 -5 -5 -4 ------------- Run | Scr Mat Min Exi Min Mat Fac Low Low Dat Pro Fac Fac Upp Upp Zhi Pro Turns Passed 9765 | . 195 344 445 159 653 280 647 637 161 1085 517 2095 920 754 215 658 Spaces Moved 6605 | 1 117 250 345 89 325 156 350 341 87 563 381 1611 715 535 170 569 Core 46 | . . . . . . . . . . . . . . . . 46 Treads . | . . . . . . . . . . . . . . . . . Legs 2686 | 1 117 250 345 89 325 156 350 341 87 563 62 . . . . . Wheels 3873 | . . . . . . . . . . . 319 1611 715 535 170 523 Hover . | . . . . . . . . . . . . . . . . . Flight . | . . . . . . . . . . . . . . . . . Fastest Speed 50 | 120 120 120 120 180 150 150 180 180 186 186 110 110 120 120 120 50 Average Speed 135 | 120 120 120 125 180 152 163 180 181 186 188 126 116 120 120 120 105 Slowest Speed 210 | 120 120 120 180 180 180 180 180 186 186 210 210 120 120 140 120 150 Overloaded Moves . | . . . . . . . . . . . . . . . . . Propulsion Burnouts . | . . . . . . . . . . . . . . . . . Robots Hopped . | . . . . . . . . . . . . . . . . . Cave-ins Triggered 1 | . . . . . . . . . . . . . . 1 . . Teleports 1 | . . . . . . . . . . . . . . . . 1 Exploration Rate (%) 44 | 2 23 61 60 18 26 7 56 52 63 63 13 40 78 66 62 66 Regions Visited 16 Branch Regions 11 Pre-discovered Areas 4 | . . . . . . . . . 1 . . . . . 3 . Known Exits Taken 3 | . . . . . . . 1 . . . . 1 1 . . . Unknown Exits Taken 13 | 1 1 1 1 1 1 1 . 1 1 1 1 . . 1 1 . Scrap Searched 19 | . . 2 . 1 . . 2 6 . 1 . . 3 3 . 1 Spaces Dug 20 | . . . . . . . . . . . . 4 . 16 . . Terrain Destroyed 158 | . . 9 . . 62 2 6 2 . 12 . 12 8 40 . 5 Melee 16 | . . . . . . . . . . . . . . 16 . . Projectile 129 | . . . . . 62 2 6 2 . 12 . 8 8 24 . 5 AOE 13 | . . 9 . . . . . . . . . 4 . . . . Actions | -11 -10 -10 -10 -9 -8 -7 -7 -7 -7 -6 -6 -5 -5 -5 -5 -4 --------- Run | Scr Mat Min Exi Min Mat Fac Low Low Dat Pro Fac Fac Upp Upp Zhi Pro Total 7317 | . 150 273 363 88 484 181 367 360 87 590 421 1830 759 584 180 600 Wait 158 | . 14 . . . 34 13 . 1 1 . 1 78 16 . . . Move 6589 | . 116 249 344 88 324 155 349 340 86 562 380 1610 714 534 169 569 Hop . | . . . . . . . . . . . . . . . . . Pick Up 77 | . 3 4 4 . 10 3 1 4 . 3 7 23 6 1 3 5 Fast Attach 34 | . 1 1 1 . 8 2 1 . . . 2 12 1 1 3 1 Attach 37 | . . . 3 . 3 2 . . . 3 4 6 4 4 1 7 Detach 21 | . . . 3 . 6 1 . . . 1 4 . 2 . 3 1 Swap 35 | . 1 4 1 . 12 . 1 3 . 1 . 4 4 1 1 2 Drop 80 | . 4 4 7 . 14 1 1 6 . 1 6 33 2 1 . . Fire 242 | . 11 11 . . 73 4 14 6 . 19 9 55 10 19 . 11 Melee 27 | . . . . . . . . . . . . . . 23 . 4 Ram 9 | . . . . . . . . . . . . 9 . . . . Kick . | . . . . . . . . . . . . . . . . . Crush . | . . . . . . . . . . . . . . . . . Escape Stasis 8 | . . . . . . . . . . . 8 . . . . . Rewire . | . . . . . . . . . . . . . . . . . Trap . | . . . . . . . . . . . . . . . . . Miscellaneous . | . . . . . . . . . . . . . . . . . Route ------- -11/Scrapyard -10/Materials -10/Mines -10/Exiles (discovered 2 exits: [*Min x2]) -9/Mines -8/Materials (discovered 2 exits: *Fac / Sto) -7/Factory -7/Lower Caves -7/Lower Caves -7/Data Miner -6/Proximity Caves -6/Factory (discovered 3 exits: *Fac / Low x2) -5/Factory (discovered 2 exits: *Upp x2) -5/Upper Caves -5/Upper Caves (discovered 2 exits: *Fac / *Zhi) -5/Zhirov -4/Proximity Caves History --------- Turn | Location | Event 1 | -11/Scrapyard | Discovered new exit (range 0) 1 | -11/Scrapyard | Entered Materials 148 | -10/Materials | Discovered new exit (range 7) 196 | -10/Materials | Entered Mines 224 | -10/Mines | Assembled infested the area 229 | -10/Mines | Assisted by a Guerilla fighting off Assembled 306 | -10/Mines | Build established: Mutant 343 | -10/Mines | Received a Rocket Launcher from a helpful Derelict 534 | -10/Mines | Deemed a non-threat by the Exiles lab entrance 535 | -10/Mines | Discovered new exit (range 5) 540 | -10/Mines | Entered Exiles 560 | -10/Exiles | Discovered new exit (range 15) 570 | -10/Exiles | Met 8R-AWN 590 | -10/Exiles | Met EX-HEX 622 | -10/Exiles | Met EX-BIN 646 | -10/Exiles | Aligned with FarCom system 647 | -10/Exiles | Given EX-Vault access code 675 | -10/Exiles | Opened EX-Vault 686 | -10/Exiles | Found XL Autogun Array 714 | -10/Exiles | Warned to stay clear of 0b10 Research branches 746 | -10/Exiles | Met EX-DEC 812 | -10/Exiles | Found Firepult 971 | -10/Exiles | Discovered new exit (range 10) 985 | -10/Exiles | Left Exiles lab with XL Autogun Array 985 | -10/Exiles | Entered Mines 1027 | -9/Mines | Discovered new exit (range 6) 1144 | -9/Mines | Entered Materials 1144 | -8/Materials | Evolved 4 slots: Propulsion x1, Utility x1, Weapon x2 1145 | -8/Materials | Identified exit to Storage 1180 | -8/Materials | Garrison activated, responded to threat 1770 | -8/Materials | Build established: Scavenger-Skirmisher 1789 | -8/Materials | Discovered new exit (range 4) 1797 | -8/Materials | Entered Factory 1797 | -7/Factory | Evolved 2 slots: Utility x2 2030 | -7/Factory | Discovered new exit (range 12) 2077 | -7/Factory | Entered Lower Caves 2379 | -7/Lower Caves | Build established: Scavenger-Tank 2427 | -7/Lower Caves | Identified exit to Lower Caves 2724 | -7/Lower Caves | Entered another Lower Caves area 2838 | -7/Lower Caves | A Commander dispatched an escort 3173 | -7/Lower Caves | Build established: Hauler-Gunner 3207 | -7/Lower Caves | Attracted the attention of an 0b10 checkpoint 3233 | -7/Lower Caves | Discovered new exit (range 15) 3255 | -7/Lower Caves | Learned Factory emergency access door positions 3361 | -7/Lower Caves | Entered Data Miner 3361 | -7/Data Miner | Accompanied by 3 allies 3361 | -7/Data Miner | Discovered new exit (range 6) 3362 | -7/Data Miner | Commander's escort returned to base 3362 | -7/Data Miner | Commander's escort returned to base 3362 | -7/Data Miner | Commander's escort returned to base 3397 | -7/Data Miner | Met Data Miner 3436 | -7/Data Miner | Learned location of Section 7 (-3) 3436 | -7/Data Miner | Acquired the access code to Warlord's prototype stash 3469 | -7/Data Miner | Received God Mode back door access code from Data Miner 3522 | -7/Data Miner | Entered Proximity Caves 3729 | -6/Proximity Caves | Spotted B-75 Beast 3731 | -6/Proximity Caves | Escorted by Enhanced Grunt 3750 | -6/Proximity Caves | Allies destroyed B-75 Beast 4413 | -6/Proximity Caves | Learned 4 Factory zone layouts 4457 | -6/Proximity Caves | Discovered new exit (range 9) 4529 | -6/Proximity Caves | Lost 3 parts (1n2u) 4607 | -6/Proximity Caves | Entered Factory 4607 | -6/Factory | Evolved 2 slots: Propulsion x1, Utility x1 4834 | -6/Factory | Identified exit to Lower Caves 5025 | -6/Factory | Discovered new exit (range 16) 5026 | -6/Factory | Build established: Hauler-Skirmisher 5124 | -6/Factory | Entered another Factory area 5124 | -5/Factory | Evolved 2 slots: Power x1, Utility x1 6455 | -5/Factory | Garrison activated, responded to threat 6599 | -5/Factory | Incoming investigation squad redirected 6953 | -5/Factory | Found Prototype Launcher 7054 | -5/Factory | Identified exit to Upper Caves 7214 | -5/Factory | System corruption reached 10% 7219 | -5/Factory | Entered Upper Caves 7267 | -5/Upper Caves | Identified Mni. Smartbomb Launcher 7383 | -5/Upper Caves | Lost 3 parts (1u2w) 7442 | -5/Upper Caves | Identified exit to Upper Caves 7985 | -5/Upper Caves | Learned Factory emergency access door positions 8139 | -5/Upper Caves | Entered another Upper Caves area 8165 | -5/Upper Caves | Discovered new exit (range 7) 8171 | -5/Upper Caves | Identified exit to Factory 8355 | -5/Upper Caves | Build established: Hauler-Tank 8410 | -5/Upper Caves | Learned Factory terminal intel 8611 | -5/Upper Caves | Crushed by falling debris 8666 | -5/Upper Caves | Lost 3 parts (2n1u) 8842 | -5/Upper Caves | Discovered new exit (range 5) 8893 | -5/Upper Caves | Entered Zhirov 8893 | -5/Zhirov | Discovered new exit (range 3) 8915 | -5/Zhirov | Met Zhirov 8941 | -5/Zhirov | Learned location of Quarantine (-3) 8941 | -5/Zhirov | Learned location of Testing (-2) 8941 | -5/Zhirov | Learned location of Command (-1) 8968 | -5/Zhirov | Zhirov requested help retrieving the SGEMP Prototype 8992 | -5/Zhirov | Found Alien Artifact 9011 | -5/Zhirov | Found Alien Artifact 9084 | -5/Zhirov | Identified Integrated Reactor 9084 | -5/Zhirov | Installed Integrated Reactor, increased core energy generation (+2%) 9108 | -5/Zhirov | Entered Proximity Caves 9108 | -4/Proximity Caves | Identified Transdimensional Reconstructor 9108 | -4/Proximity Caves | Warped through subspace 9162 | -4/Proximity Caves | Learned 4 Research zone layouts 9431 | -4/Proximity Caves | Build established: Hauler-Mutant 9523 | -4/Proximity Caves | Core integrity fell below 50% 9552 | -4/Proximity Caves | Attacked by a faux Warlord 9652 | -4/Proximity Caves | Learned Research terminal intel 9726 | -4/Proximity Caves | Core integrity fell below 20% 9741 | -4/Proximity Caves | Released all parts (4) 9766 | -4/Proximity Caves | Destroyed by G-67 Veteran with Plasma Rifle Last Messages --------------- 09727_ Mic. Fission Core destroyed. 09728_ Penetrated by Slug. 09728_ Slug penetrates Wall. 09728_ Penetrated by Slug. 09730_ Lgt. Antimatter Reactor self-destruct mechanism malfunctions. 09731_ Hvy. Beamcaster destroyed. 09731_ Penetrated by Slug. 09731_ Slug penetrates G-67 Veteran. 09737_ Coil Gun self-destruct mechanism malfunctions. 09738_ Myomer Leg fries itself beyond repair. 09738_ Penetrated by Slug. 09741_ Slug penetrates Abandoned Machinery. 09741_ Arm. Huge Wheel destroyed. 09741_ Released Mak. Spear. 09741_ Released Med. Storage Unit. 09741_ Released Hcp. Storage Unit. 09744_ W#3,WYRTY LO2#EAIDIXDZXO,PWN|TSC 09764_ Drone sends a signal. 09765_ H-77 Assassin retrieves Drone. 09765_ H-77 Assassin IFF system glitched. Map ----- +----------------------------------------------------+ | ?????????????????????????? " #??????????????????? | | ??????????????????????????" "???????????????????? | | ????#########???????###??# "#???????????????????? | | ##?## ## ###????## #### "##??????????????????? | | ### ##??## ## " "##?????????????????? | | #### !!! #####?????????????? | | ### ## [!!!! ##????????????? | | # ##?## !!!/!!! ##???????????? | | ## #???##### !*[!! #???????????? | | ?## ######??## *%% !## #???????????? | | ??# #???# [ #### #????????????? | | ?# ### #??# #####??# ##????????????? | | ##?# #??# #??????# #?????????????? | | ##??# #### ##?????# ##?????????????? | | #????# #?????## ##??????????????? | | ?????# #??????## #???????????????? | | ????## #########???????# #???????????????? | | ???## ##??????????????#g ##???????????????? | | ???## ##?????????????#g ##????????????????? | | #??## ##???####????## ##?????????????????? | | ???# #??## ##???#gh ##??????????????????? | | #### ##??# #??## ##??????????????????? | | ## ####### #### ##?????????????????? | | ####### ## ## ##????????????????? | | #?????# ### ##???????????????? | | #????? #?### l @ #???????????????? | | ##????? ##???## ## ##???????????????? | | ??????? ?????#### ## ##????????????????? | | ???### ????????# ##?###?????????????????? | | ??? #???????# ##??????????????????????? | | ?? #???????#### ##???????????????????????? | | ?? ###????????####????????????????????????? | | ?? ##???????????????????????????????????? | | ?? ???????????????????????????????????? | | ?? ??????????????????????????????????? | | ?? ??????????????????????????????????? | | ?? ??????????????????????????????????? | | ## #?????????????????????????????????? | | # #?????????????????????????????????? | | #?????????????????????????????????? | | #????????????????????????????????? | | ????????????????????????????????? | | ????????????????????????????????? | | ????????????????????????????????? | | ##?????????????????????????????????? | | ####### ##??????????????????????????????????? | | ##??????? #???????????????????????????????????? | | ###??????????????????????????????????????????? | | ##?????????#####???????????????????????????? | | #????????## #???????????????????????????? | +----------------------------------------------------+ Best States ------------- Heat Dissipation 75 Energy Generation 46 Energy Capacity 1040 Matter Stores 300 Matter Capacity 300 Sight Range 16 Robot Scan Range 16 Terrain Scan Density 10 ECM Strength 2 Cloak Strength 2 Base Temperature (-) 200 Armor Coverage 225 Resistance: KI 25 Core Shielding 20 Power Shielding 90 Propulsion Shielding 90 Thermal Conversion 30 Evasion (%) 50 Targeting Accuracy 5 Kinecelleration 30 Item Schematics ----------------- Combat Drone Bay | -7/Data Miner | Free Lgt. Regenerative Plating | -7/Data Miner | Free Exp. Cesium-ion Thruster | -7/Data Miner | Free Exp. ECM Suite | -7/Data Miner | Free Cloaking Device | -7/Data Miner | Free Kinetic Spear | -7/Data Miner | Free Assault Drone Bay | -5/Zhirov | Free Exp. Heat Sink | -5/Zhirov | Free Exp. Optical Array | -5/Zhirov | Free Imp. Arc Thrower | -5/Zhirov | Free Robot Schematics ------------------ S-27 Virus | -7/Data Miner | Free G-50 Soldier | -7/Data Miner | Free G-67 Veteran | -7/Data Miner | Free L-41 Fighter | -7/Data Miner | Free X-72 Disruptor | -7/Data Miner | Free H-66 Slayer | -7/Data Miner | Free P-70 Sage | -7/Data Miner | Free I-36 Angel | -7/Data Miner | Free Fabricated ------------ Nothing Alien Tech Used ----------------- Integrated Reactor Transdimensional Reconstructor Achievements -------------- Explorer Challenges ------------ None Game ------ Seed DeepWarpTearclaws Manual? 0 Play Time 01:29:54 Cumulative 99.3 hours Start 2020.01.04 @ 14:12:22 End 2020.01.04 @ 17:05:18 Sessions 6 Manual Loads 0 Difficulty Rogue Special Mode None Game No. 88 Rogue 88 Adventurer 0 Explorer 0 Win Type - Total 1 Types 1/0/0/0/0/0/0 Lore% 51 Gallery% 57 Achievement% 41 Wizard Run 0 Options --------- ASCII 0 Keyboard 1 Movement Numpad Keybinds 0 Fullscreen 2 Font 18/Terminus Map View 76x50 Tactical HUD 1 Map Filters NONE Filters NONE Steam 1 RUN: dcb39855-91a6-4c73-87de-9b84892dfb0c